bitfinex/quotes_SOLUSD_20250822
["timestamp","ask_amount","ask_price","bid_price","bid_amount"]
[1755861036547,8.76547513,181.05,181.03,0.03]
[1755861037448,132.4,181.04,181.03,0.03]
[1755861039385,138.05427763,181.04,181.03,0.03]
[1755861040574,132.4,181.04,181.03,0.03]
[1755861042059,4.95427763,181.07,181.03,0.7]
[1755861042268,0.7,181.07,181.04,0.28432314]
[1755861042576,4.95427763,181.06,181.04,0.28432314]
[1755861043155,0.7,181.07,181.04,0.28432314]
[1755861043474,4.95427763,181.06,181.04,0.28432314]
[1755861043874,4.95427763,181.07,181.04,0.28432314]
[1755861044260,5.65427763,181.07,181.03,0.45648471]
[1755861044574,4.95427763,181.08,181.03,0.31432314]
[1755861044750,3.6619526,181.09,181.04,0.28432314]
[1755861044751,4.95427763,181.07,181.04,0.28432314]
[1755861044953,0.7,181.09,181.04,0.95432314]
[1755861045168,4.95427763,181.07,181.04,0.95432314]
[1755861045366,5.65427763,181.07,181.04,0.28432314]
[1755861045771,0.7,181.07,181.04,0.28432314]
[1755861045955,5.65427763,181.07,181.04,0.28432314]
[1755861046683,4.95427763,181.07,181.04,0.28432314]
[1755861046985,5.65427763,181.06,181.03,0.17216157]
[1755861047688,4.95427763,181.06,181.03,0.45648471]
[1755861047876,0.68,181.06,181.03,0.45648471]
[1755861048072,5.63427763,181.06,181.03,0.45648471]
[1755861048271,4.95427763,181.06,181.03,0.45648471]
[1755861048478,5.63427763,181.05,181.01,0.03]
[1755861048678,26.0,181.01,180.94,2.88288037]
[1755861048875,4.95427763,180.97,180.92,0.72]
[1755861049205,3.66639067,180.99,180.96,4.95427763]
[1755861049384,4.95427763,181.03,180.97,4.95427763]
[1755861049583,4.95427763,181.02,180.97,0.72]
[1755861050085,5.63427763,181.02,180.96,5.52582136]
[1755861050302,5.63427763,181.02,180.97,0.72]
[1755861050463,5.63427763,181.02,180.97,1.00432314]
[1755861050659,4.95427763,181.01,180.97,1.00432314]
[1755861050877,5.63427763,181.02,180.97,0.28432314]
[1755861051089,4.95427763,181.02,180.98,0.72]
[1755861051663,4.95427763,181.02,180.97,0.42648471]
[1755861051967,0.68,181.01,180.97,0.28432314]
[1755861052174,4.95427763,181.01,180.97,0.28432314]
[1755861052391,4.95427763,181.01,180.97,1.00432314]
[1755861052784,6.2039463,181.03,180.97,1.00432314]
[1755861053091,4.95427763,181.01,180.97,6.53008582]
[1755861053294,4.95427763,181.01,180.97,1.00432314]
[1755861053673,6.2039463,181.03,180.97,6.53006437]
[1755861053875,4.95427763,181.01,180.97,6.53006437]
[1755861054477,8.61819187,181.04,180.99,4.95427763]
[1755861054669,4.95427763,181.04,181.0,0.28432314]
[1755861054988,4.95427763,181.01,181.0,0.28432314]
[1755861055382,3.66463984,181.04,181.0,0.28432314]
[1755861055581,4.95427763,181.02,181.0,0.28432314]
[1755861055784,4.34463984,181.05,181.0,1.00432314]
[1755861055990,4.95427763,181.02,181.0,0.28432314]
[1755861056387,5.63427763,181.01,181.0,0.28432314]
[1755861056570,5.63427763,181.01,180.97,0.28432314]
[1755861056891,4.95427763,180.99,180.97,0.28432314]
[1755861058292,5.63427763,180.98,180.96,0.03]
[1755861058499,4.95427763,180.97,180.96,0.03]
[1755861058799,4.95427763,180.97,180.84,3.6044777]
[1755861058800,26.0,180.9,180.84,3.6044777]
[1755861059004,0.68,180.92,180.84,6.24972153]
[1755861059181,30.07178835,180.94,180.88,4.95427763]
[1755861059374,4.95427763,180.93,180.88,5.67427763]
[1755861059696,4.95427763,180.91,180.88,0.86216157]
[1755861059995,4.95427763,180.92,180.88,1.00432314]
[1755861060178,4.95427763,180.93,180.88,5.23860077]
[1755861060373,4.95427763,180.93,180.89,0.72]
[1755861060894,23.34667499,180.99,180.89,0.72]
[1755861060895,6.20585571,180.97,180.9,0.72]
[1755861061194,26.0,180.94,180.86,0.72]
[1755861061396,4.95427763,180.92,180.87,18.54987164]
[1755861061698,4.95427763,180.93,180.89,0.42648471]
[1755861061901,4.95427763,180.93,180.9,0.72]
[1755861062996,4.95427763,180.92,180.89,0.42648471]
[1755861063384,4.95427763,180.93,180.89,1.14648471]
[1755861063584,4.95427763,180.92,180.89,1.14648471]
[1755861063781,0.68,180.96,180.89,11.62897045]
[1755861063782,4.95427763,180.94,180.89,11.62897045]
[1755861063982,0.68,180.99,180.93,0.28432314]
[1755861064187,4.95427763,180.97,180.93,0.28432314]
[1755861064391,0.68,180.99,180.94,0.72]
[1755861064579,4.95427763,180.99,180.95,0.28432314]
[1755861064903,4.95427763,180.99,180.95,1.00432314]
[1755861065081,4.95427763,180.98,180.95,0.28432314]
[1755861065281,4.95427763,180.96,180.95,0.28432314]
[1755861065809,0.68,180.96,180.89,31.52809464]
[1755861065977,0.68,180.96,180.9,0.14216157]
[1755861065978,5.63427763,180.96,180.9,0.14216157]
[1755861066299,4.95427763,180.97,180.92,5.38076234]
[1755861066506,4.95427763,180.95,180.92,0.28432314]
[1755861067488,5.25521271,181.03,180.94,5.23860077]
[1755861067702,4.95427763,181.02,180.98,0.28432314]
[1755861067905,5.63427763,181.03,180.98,1.00432314]
[1755861068111,5.63427763,181.03,180.89,15.811352]
[1755861068112,9.90855526,180.99,180.89,5.811352]
[1755861068297,26.0,180.96,180.89,5.811352]
[1755861068481,4.95427763,180.94,180.9,0.72]
[1755861068914,4.95427763,180.93,180.87,0.72]
[1755861069218,4.95427763,180.93,180.88,4.95427763]
[1755861069511,4.95427763,180.94,180.89,11.48652468]
[1755861069716,4.95427763,180.94,180.89,11.34436311]
[1755861070203,4.95427763,180.94,180.9,0.14216157]
[1755861070406,4.95427763,180.93,180.9,0.14216157]
[1755861070625,4.95427763,180.92,180.9,0.14216157]
[1755861070829,4.95427763,180.92,180.89,0.14216157]
[1755861071191,5.63427763,180.93,180.89,0.14216157]
[1755861071497,26.68,180.96,180.9,0.28432314]
[1755861071700,4.95427763,180.95,180.9,5.95860077]
[1755861071897,4.95427763,180.93,180.9,0.28432314]
[1755861072312,5.63427763,180.93,180.9,0.28432314]
[1755861072508,4.95427763,180.93,180.9,0.28432314]
[1755861073712,0.68,180.95,180.87,0.03]
[1755861073713,4.95427763,180.91,180.87,0.03]
[1755861074009,132.4,180.92,180.9,0.28432314]
[1755861074985,132.4,180.92,180.9,5.23860077]
[1755861075214,132.99,180.92,180.9,0.28432314]
[1755861075510,0.59,180.91,180.9,0.28432314]
[1755861076187,0.59,180.91,180.88,0.28432314]
[1755861076812,137.35427763,180.92,180.87,0.03]
[1755861076813,5.54427763,180.9,180.87,0.03]
[1755861077035,137.35427763,180.89,180.87,0.03]
[1755861077317,132.4,180.89,180.87,0.03]
[1755861077817,132.4,180.89,180.87,0.17216157]
[1755861078912,132.4,180.89,180.87,5.70092902]
[1755861079118,132.99,180.89,180.87,5.70092902]
[1755861079417,132.4,180.89,180.87,5.84309059]
[1755861079907,132.4,180.89,180.87,0.31432314]
[1755861080217,5.54427763,180.88,180.87,0.31432314]
[1755861080422,5.54427763,180.88,180.87,0.03]
[1755861081112,5.61427763,180.88,180.87,0.03]
[1755861082816,7.83126563,180.91,180.87,0.31432314]
[1755861083015,2.876988,180.91,180.87,5.26860077]
[1755861083421,0.66,180.91,180.87,0.31432314]
[1755861083626,0.66,180.91,180.87,5.26860077]
[1755861083997,30.95427763,180.92,180.89,0.28432314]
[1755861084403,0.66,180.91,180.89,0.28432314]
[1755861084709,5.61427763,180.91,180.89,0.28432314]
[1755861086012,4.95427763,180.91,180.89,0.28432314]
[1755861086332,5.61427763,180.91,180.89,0.28432314]
[1755861086811,0.66,180.9,180.89,0.28432314]
[1755861087227,5.61427763,180.9,180.87,0.03]
[1755861087449,5.61427763,180.89,180.87,0.03]
[1755861087929,5.61427763,180.89,180.87,0.17216157]
[1755861088116,0.66,180.89,180.87,0.31432314]
[1755861088312,5.61427763,180.89,180.87,0.31432314]
[1755861088635,0.66,180.88,180.87,0.31432314]
[1755861089126,4.95427763,180.89,180.87,0.31432314]
[1755861089350,0.66,180.88,180.87,0.31432314]
[1755861089833,0.66,180.91,180.87,0.31432314]
[1755861090028,4.95427763,180.89,180.87,0.31432314]
[1755861090328,4.95427763,180.88,180.87,0.03]
[1755861090710,5.61427763,180.88,180.87,0.03]
[1755861091620,7.83175663,180.88,180.87,0.03]
[1755861092640,13.36028383,180.88,180.87,0.03]
[1755861093020,43.32732132,180.88,180.87,0.03]
[1755861093211,13.59559401,180.87,180.86,0.03]
[1755861093522,31.00610241,180.87,180.86,0.03]
[1755861094115,26.0,180.84,180.75,0.67]
[1755861094415,26.0,180.8,180.76,4.95427763]
[1755861094621,26.0,180.8,180.7,13.59559401]
[1755861094823,26.0,180.8,180.76,4.95427763]
[1755861095018,30.95427763,180.8,180.77,0.67]
[1755861095332,5.532716,180.83,180.79,4.95427763]
[1755861095536,4.95427763,180.87,180.83,0.28432314]
[1755861095716,4.954278,180.87,180.83,0.28432314]
[1755861095922,4.954278,180.87,180.84,0.67]
[1755861096227,4.95427763,180.86,180.85,0.28432314]
[1755861096426,5.61427763,180.86,180.81,0.28432314]
[1755861096742,4.95427763,180.84,180.81,0.28432314]
[1755861097141,4.95427763,180.84,180.81,0.95432314]
[1755861097432,26.0,180.87,180.84,0.28432314]
[1755861097613,4.95427763,180.86,180.82,0.67]
[1755861097813,4.95427763,180.86,180.81,5.23860077]
[1755861097814,5.61427763,180.86,180.81,5.23860077]
[1755861098121,5.61427763,180.86,180.81,0.95432314]
[1755861098122,4.95427763,180.85,180.81,0.95432314]
[1755861098328,5.61427763,180.85,180.81,0.28432314]
[1755861098532,4.95427763,180.84,180.81,0.28432314]
[1755861098712,4.95427763,180.82,180.77,11.15616898]
[1755861098912,4.95427763,180.82,180.78,0.67]
[1755861099124,4.95427763,180.82,180.79,0.67]
[1755861099312,4.95427763,180.83,180.79,0.67]
[1755861099525,4.95427763,180.83,180.79,0.81216157]
[1755861100437,4.95427763,180.8,180.73,6.20311569]
[1755861100613,4.95427763,180.77,180.73,6.20311569]
[1755861100814,4.95427763,180.76,180.73,6.20311569]
[1755861101020,132.4,180.79,180.74,0.67]
[1755861101235,4.95427763,180.77,180.75,0.67]
[1755861101613,132.4,180.79,180.76,5.62427763]
[1755861101829,132.4,180.79,180.77,6.05076234]
[1755861102017,4.95427763,180.83,180.78,0.67]
[1755861102352,4.95427763,180.81,180.8,0.28432314]
[1755861103439,5.61427763,180.81,180.77,0.03]
[1755861103628,4.95427763,180.78,180.77,0.03]
[1755861104539,6.192569,180.8,180.77,0.03]
[1755861104540,0.66,180.8,180.77,0.03]
[1755861104847,4.95427763,180.78,180.77,0.03]
[1755861105728,5.61427763,180.78,180.77,0.03]
[1755861106324,5.61427763,180.78,180.77,0.17216157]
[1755861106530,4.95427763,180.78,180.77,0.17216157]
[1755861107242,2.928218,180.8,180.77,0.17216157]
[1755861107458,4.95427763,180.81,180.78,0.66]
[1755861107637,4.95427763,180.82,180.78,0.80216157]
[1755861107942,4.95427763,180.82,180.79,0.66]
[1755861108649,4.95427763,180.82,180.81,0.28432314]
[1755861110519,4.95427763,180.82,180.81,5.81499069]
[1755861110721,4.95427763,180.82,180.81,5.53066755]
[1755861110919,26.0,180.83,180.81,5.81499069]
[1755861111119,4.95427763,180.82,180.81,5.81499069]
[1755861113755,26.0,180.83,180.81,5.81499069]
[1755861113945,4.95427763,180.82,180.81,5.81499069]
[1755861114142,132.4,180.82,180.81,5.81499069]
[1755861114334,132.4,180.82,180.81,10.76926832]
[1755861114731,0.06,180.88,180.82,0.42648471]
[1755861114931,4.95427763,180.86,180.83,0.66]
[1755861115248,4.95427763,180.84,180.82,0.28432314]
[1755861115750,4.95427763,180.84,180.82,5.81458488]
[1755861116138,4.95427763,180.83,180.82,0.28432314]
[1755861116464,5.66427763,180.83,180.82,0.28432314]
[1755861116626,5.66427763,180.83,180.77,0.03]
[1755861116830,4.95427763,180.8,180.77,0.03]
[1755861117138,4.95427763,180.81,180.77,0.31432314]
[1755861117370,4.95427763,180.81,180.78,0.66]
[1755861117682,4.95427763,180.83,180.79,0.66]
[1755861117956,26.0,180.84,180.8,0.66]
[1755861118127,4.95427763,180.83,180.8,0.66]
[1755861119132,26.0,180.84,180.8,0.66]
[1755861119344,4.95427763,180.83,180.8,0.66]
[1755861119657,30.95427763,180.84,180.82,0.28432314]
[1755861120347,132.4,180.83,180.82,0.28432314]
[1755861120751,4.95427763,180.83,180.82,0.28432314]
[1755861120953,5.66427763,180.83,180.82,0.28432314]
[1755861121464,4.95427763,180.83,180.82,0.28432314]
[1755861121765,4.95427763,180.83,180.81,0.28432314]
[1755861121943,4.95427763,180.82,180.81,0.28432314]
[1755861122264,0.71,180.85,180.81,0.28432314]
[1755861122464,3.65459087,180.87,180.82,0.66]
[1755861122637,4.95427763,180.84,180.81,5.81495548]
[1755861122838,4.95427763,180.83,180.81,0.28432314]
[1755861123867,3.65459087,180.87,180.82,0.66]
[1755861124040,3.65459087,180.87,180.81,5.23860077]
[1755861124363,4.95427763,180.86,180.82,0.66]
[1755861124566,4.95427763,180.86,180.81,0.28432314]
[1755861124765,4.95427763,180.86,180.82,0.66]
[1755861125257,4.95427763,180.86,180.83,0.94432314]
[1755861125658,3.65459087,180.87,180.83,0.94432314]
[1755861125856,4.95427763,180.86,180.83,0.94432314]
[1755861126047,132.4,180.87,180.83,0.28432314]
[1755861126247,132.4,180.87,180.84,0.66]
[1755861126555,132.4,180.87,180.86,5.23860077]
[1755861126745,132.4,180.87,180.86,5.89860077]
[1755861126947,0.06,180.88,180.87,0.28432314]
[1755861127165,0.06,180.88,180.87,11.5695952]
[1755861128086,0.06,180.88,180.87,0.28432314]
[1755861128575,5.01427763,180.88,180.87,0.28432314]
[1755861128947,5.01427763,180.88,180.85,0.28432314]
[1755861129378,5.01427763,180.88,180.85,5.81372268]
[1755861130050,0.06,180.88,180.85,0.28432314]
[1755861130247,4.95427763,180.86,180.81,5.53060067]
[1755861130467,4.95427763,180.84,180.81,0.66]
[1755861130752,5.58856138,180.88,180.78,13.59559401]
[1755861130753,4.95427763,180.82,180.78,5.53148658]
[1755861131069,4.95427763,180.84,180.79,0.94432314]
[1755861131267,26.71,180.86,180.8,6.19085708]
[1755861131457,4.95427763,180.82,180.78,6.19158535]
[1755861131657,4.36889731,180.85,180.79,0.28432314]
[1755861131864,4.95427763,180.82,180.79,0.28432314]
[1755861132062,4.36962262,180.85,180.79,0.28432314]
[1755861132451,4.36962262,180.85,180.79,5.89860077]
[1755861132452,4.95427763,180.83,180.79,5.89860077]
[1755861132674,4.95427763,180.83,180.8,0.66]
[1755861132858,4.95427763,180.83,180.79,0.28432314]
[1755861133058,0.71,180.83,180.79,0.28432314]
[1755861133460,4.95427763,180.82,180.79,0.28432314]
[1755861135258,137.35427763,180.82,180.79,5.81560251]
[1755861136167,132.4,180.82,180.79,5.81560251]
[1755861136358,137.35427763,180.82,180.79,5.81560251]
[1755861136553,132.4,180.82,180.79,6.47560251]
[1755861136754,132.4,180.82,180.81,0.28432314]
[1755861136977,4.95427763,180.85,180.82,0.28432314]
[1755861137277,4.33554101,180.87,180.82,5.81454511]
[1755861137480,4.95427763,180.85,180.82,6.47454511]
[1755861137972,0.67,180.84,180.82,0.28432314]
[1755861138170,0.67,180.83,180.82,0.28432314]
[1755861138377,5.62427763,180.83,180.82,0.28432314]
[1755861139583,5.62427763,180.83,180.79,0.28432314]
[1755861139788,5.62427763,180.83,180.79,5.81559202]
[1755861139789,9.28981864,180.83,180.79,5.81559202]
[1755861140082,4.95427763,180.82,180.79,5.81559202]
[1755861140857,8.62140314,180.82,180.79,0.28432314]
[1755861141273,9.29140314,180.82,180.79,0.28432314]
[1755861141475,5.62427763,180.82,180.79,0.28432314]
[1755861141677,5.52944484,180.85,180.8,0.94432314]
[1755861141678,8.62140314,180.83,180.8,0.94432314]
[1755861141877,4.95427763,180.83,180.8,0.28432314]
[1755861142089,9.29140314,180.82,180.8,0.28432314]
[1755861142289,4.95427763,180.82,180.8,0.28432314]
[1755861142780,8.62140314,180.82,180.8,0.28432314]
[1755861142985,4.95427763,180.83,180.8,0.28432314]
[1755861143182,136.06712551,180.82,180.8,0.28432314]
[1755861143389,132.4,180.82,180.8,0.28432314]
[1755861143971,137.35427763,180.82,180.8,0.28432314]
[1755861144364,137.35427763,180.82,180.8,5.81526346]
[1755861145370,137.35427763,180.82,180.8,0.28432314]
[1755861146685,132.4,180.82,180.8,6.4752848]
[1755861147079,132.4,180.81,180.8,0.28432314]
[1755861147464,132.4,180.81,180.8,6.47529659]
[1755861148066,31.31390689,180.88,180.81,0.28432314]
[1755861148267,4.95427763,180.86,180.82,4.95427763]
[1755861148572,9.29431171,180.85,180.82,5.53036168]
[1755861148877,5.62427763,180.85,180.82,5.53036168]
[1755861149084,4.95427763,180.83,180.79,5.61427763]
[1755861149300,5.62427763,180.83,180.8,0.28432314]
[1755861149699,0.67,180.83,180.8,0.28432314]
[1755861149881,9.29397965,180.83,180.8,0.28432314]
[1755861150080,4.33970202,180.85,180.8,0.94432314]
[1755861150264,9.29397965,180.84,180.8,5.23860077]
[1755861150468,3.66970202,180.83,180.8,5.8151694]
[1755861151180,3.66970202,180.83,180.75,39.62559401]
[1755861151181,4.95427763,180.81,180.77,5.56185881]
[1755861151500,4.95427763,180.83,180.79,4.95427763]
[1755861151816,4.95427763,180.83,180.8,0.94432314]
[1755861151983,3.66970202,180.83,180.8,0.28432314]
[1755861152177,4.95427763,180.83,180.8,0.28432314]
[1755861152377,4.95427763,180.83,180.78,5.89860077]
[1755861152577,0.67,180.82,180.79,5.53127938]
[1755861152884,5.62427763,180.82,180.79,5.53127938]
[1755861153108,4.95427763,180.82,180.78,6.47584035]
[1755861153396,4.95427763,180.82,180.79,0.66]
[1755861153578,4.95427763,180.82,180.78,5.81584035]
[1755861153894,4.95427763,180.82,180.78,6.47584035]
[1755861154494,8.62428624,180.82,180.79,0.66]
[1755861154671,4.95427763,180.83,180.78,10.77011798]
[1755861154998,4.95427763,180.83,180.79,0.66]
[1755861155193,0.67,180.85,180.78,5.81584035]
[1755861155194,0.67,180.82,180.78,5.81584035]
[1755861155377,4.95427763,180.79,180.77,0.03]
[1755861155586,4.95427763,180.8,180.77,0.31432314]
[1755861155773,4.95427763,180.8,180.78,0.03]
[1755861156383,0.67,180.8,180.78,0.03]
[1755861156594,5.62427763,180.8,180.78,0.03]
[1755861156766,0.67,180.8,180.78,0.03]
[1755861156971,4.95427763,180.8,180.78,0.03]
[1755861157182,5.62427763,180.79,180.78,0.03]
[1755861157992,9.29289689,180.79,180.78,0.03]
[1755861158204,5.62427763,180.79,180.78,0.03]
[1755861158610,9.29289689,180.79,180.78,0.03]
[1755861158810,5.62427763,180.79,180.78,0.03]
[1755861159115,9.29289689,180.79,180.78,0.03]
[1755861159496,4.33861926,180.79,180.78,0.03]
[1755861159696,5.62427763,180.79,180.78,0.03]
[1755861159902,9.29289689,180.79,180.78,0.03]
[1755861160104,5.62427763,180.79,180.78,0.03]
[1755861160320,4.33861926,180.79,180.78,0.03]
[1755861160492,4.95427763,180.8,180.78,0.03]
[1755861160692,9.29035242,180.79,180.78,0.03]
[1755861161506,3.66607479,180.8,180.78,0.03]
[1755861161829,132.4,180.79,180.78,0.03]
[1755861162697,138.02427763,180.79,180.78,0.03]
[1755861162916,141.68907146,180.79,180.78,0.03]
[1755861164239,136.06479383,180.79,180.78,0.03]
[1755861164400,132.4,180.79,180.78,0.03]
[1755861166104,132.4,180.79,180.78,5.92860077]
[1755861166844,132.4,180.79,180.78,11.46018612]
[1755861167136,0.06,180.86,180.79,0.28432314]
[1755861167298,0.06,180.86,180.83,0.28432314]
[1755861167299,3.72525094,180.86,180.83,0.28432314]
[1755861167693,3.72525094,180.86,180.85,0.28432314]
[1755861167935,0.06,180.86,180.85,0.28432314]
[1755861169026,0.06,180.86,180.85,6.53376743]
[1755861169204,0.06,180.86,180.85,0.28432314]
[1755861169841,0.06,180.86,180.85,6.53376743]
[1755861170197,0.06,180.86,180.85,11.48804506]
[1755861170834,0.06,180.86,180.85,0.28432314]
[1755861171322,5.69427763,180.86,180.82,0.14216157]
[1755861171512,4.95427763,180.83,180.78,30.98427763]
[1755861171705,4.95427763,180.82,180.78,6.28152529]
[1755861171924,4.95427763,180.82,180.79,0.72]
[1755861172137,4.95427763,180.82,180.79,1.00432314]
[1755861172506,4.95427763,180.82,180.79,0.86216157]
[1755861172804,8.62060761,180.83,180.8,0.14216157]
[1755861173008,3.66632998,180.83,180.81,5.8164392]
[1755861173214,132.4,180.84,180.83,0.14216157]
[1755861173627,132.4,180.84,180.83,0.86216157]
[1755861174323,132.4,180.84,180.83,0.14216157]
[1755861175124,132.4,180.84,180.82,0.28432314]
[1755861176116,132.4,180.84,180.82,5.81468108]
[1755861178049,132.4,180.84,180.82,0.28432314]
[1755861178552,132.4,180.84,180.82,5.81462937]
[1755861178850,132.4,180.84,180.82,6.53462937]
[1755861179416,132.4,180.84,180.82,5.81462937]
[1755861179741,132.4,180.84,180.82,0.28432314]
[1755861180514,132.4,180.84,180.82,1.00432314]
[1755861180916,132.4,180.84,180.82,0.28432314]
[1755861183153,132.4,180.84,180.83,0.28432314]
[1755861184035,137.35427763,180.84,180.83,0.28432314]
[1755861184435,141.7055196,180.84,180.83,0.28432314]
[1755861184934,141.0255196,180.84,180.83,0.28432314]
[1755861185254,141.7055196,180.84,180.78,31.56134153]
[1755861185550,4.95427763,180.82,180.78,31.56134153]
[1755861185726,4.95427763,180.81,180.79,0.14216157]
[1755861185930,4.95427763,180.8,180.78,26.03]
[1755861186142,5.63427763,180.8,180.78,26.03]
[1755861186343,4.95427763,180.8,180.78,0.03]
[1755861186532,4.95427763,180.79,180.78,0.03]
[1755861186845,5.63427763,180.79,180.78,0.03]
[1755861187252,4.35029784,180.79,180.78,0.03]
[1755861187446,5.63427763,180.79,180.78,0.03]
[1755861187846,9.30457547,180.79,180.78,0.03]
[1755861188130,5.63427763,180.79,180.78,0.03]
[1755861188637,9.30457547,180.79,180.78,0.03]
[1755861188961,5.63427763,180.79,180.78,0.03]
[1755861189160,9.30457547,180.79,180.78,0.03]
[1755861189361,5.63427763,180.79,180.78,0.03]
[1755861190054,4.35029784,180.79,180.78,0.03]
[1755861190254,11.16555701,180.79,180.78,0.03]
[1755861190558,14.83585485,180.79,180.78,0.03]
[1755861190773,9.30457547,180.79,180.78,0.03]
[1755861191744,5.63427763,180.79,180.78,0.03]
[1755861191953,9.30457547,180.79,180.78,0.03]
[1755861192144,5.63427763,180.79,180.78,0.03]
[1755861192469,9.30457547,180.79,180.78,0.03]
[1755861192641,5.63427763,180.79,180.78,0.03]
[1755861192842,9.30457547,180.79,180.78,0.03]
[1755861193245,14.83585485,180.79,180.78,0.03]
[1755861193536,0.68,180.79,180.78,0.03]
[1755861193736,9.30457547,180.79,180.78,0.03]
[1755861194759,14.83585485,180.79,180.78,0.03]
[1755861196156,9.30058933,180.79,180.78,0.03]
[1755861198160,4.3463117,180.79,180.78,0.03]
[1755861198361,9.30058933,180.79,180.78,0.03]
[1755861199149,22.89618334,180.79,180.78,0.03]
[1755861199659,17.94190571,180.79,180.78,0.03]
[1755861199855,8.62058933,180.79,180.78,0.03]
[1755861200056,9.33058933,180.79,180.78,0.03]
[1755861201467,132.34,180.77,180.76,0.03]
[1755861201663,137.29427763,180.77,180.76,0.03]
[1755861201860,138.00427763,180.77,180.76,0.03]
[1755861202644,155.2645997,180.77,180.76,0.03]
[1755861202860,163.01556905,180.77,180.76,0.03]
[1755861203061,163.15773062,180.77,180.76,0.03]
[1755861204072,13.59559401,180.75,180.74,0.03]
[1755861204240,4.95427763,180.68,180.65,0.67]
[1755861204644,4.95427763,180.68,180.66,0.67]
[1755861204977,4.95427763,180.68,180.67,0.67]
[1755861205154,5.535805,180.7,180.67,0.67]
[1755861205471,5.535805,180.7,180.63,26.0]
[1755861205472,4.95427763,180.68,180.63,26.67]
[1755861205670,4.95427763,180.67,180.64,0.67]
[1755861206045,4.95427763,180.67,180.65,0.67]
[1755861206245,4.95427763,180.66,180.65,0.67]
[1755861206468,5.535805,180.7,180.65,0.67]
[1755861206763,4.95427763,180.68,180.65,0.67]
[1755861206970,4.95427763,180.68,180.65,6.20538228]
[1755861207171,26.0,180.72,180.66,0.95432314]
[1755861207371,4.95427763,180.7,180.66,0.95432314]
[1755861207581,6.205382,180.72,180.7,0.28432314]
[1755861207787,4.95427763,180.74,180.71,0.67]
[1755861207944,4.95427763,180.76,180.74,0.03]
[1755861208371,4.95427763,180.75,180.74,0.7]
[1755861208581,4.954278,180.78,180.74,0.7]
[1755861208876,4.95427763,180.77,180.75,0.67]
[1755861209057,137.294277,180.79,180.75,0.67]
[1755861209242,138.004277,180.79,180.74,0.31432314]
[1755861209443,4.95427763,180.76,180.74,0.98432314]
[1755861210074,4.95427763,180.77,180.75,0.67]
[1755861210567,4.95427763,180.77,180.76,0.67]
[1755861210777,4.95427763,180.78,180.76,0.67]
[1755861210972,137.294277,180.79,180.76,0.67]
[1755861211144,137.294277,180.79,180.77,0.95432314]
[1755861211473,4.95427763,180.84,180.79,0.28432314]
[1755861211660,5.532148,180.85,180.81,5.23860077]
[1755861211859,0.06,180.86,180.81,5.23860077]
[1755861212069,4.95427763,180.85,180.82,0.67]
[1755861212260,3.71655057,180.86,180.81,0.28432314]
[1755861212573,3.71655057,180.86,180.78,0.67]
[1755861212574,4.95427763,180.82,180.78,0.67]
[1755861212779,0.71,180.84,180.78,0.67]
[1755861212989,4.95427763,180.8,180.78,0.67]
[1755861213156,4.95427763,180.8,180.79,0.67]
[1755861213676,4.95427763,180.8,180.77,0.28432314]
[1755861213855,4.95427763,180.79,180.77,0.95432314]
[1755861214054,4.95427763,180.8,180.78,0.67]
[1755861214589,4.95427763,180.79,180.77,0.28432314]
[1755861214793,4.95427763,180.79,180.77,0.95432314]
[1755861215299,4.95427763,180.79,180.78,0.67]
[1755861215497,4.95427763,180.79,180.77,0.28432314]
[1755861215676,4.95427763,180.78,180.77,0.28432314]
[1755861215876,4.95427763,180.78,180.74,0.7]
[1755861216120,4.95427763,180.75,180.74,0.03]
[1755861216581,4.954278,180.79,180.74,0.7]
[1755861216783,4.95427763,180.75,180.74,0.03]
[1755861217198,5.66427763,180.75,180.74,0.03]
[1755861217399,11.19678108,180.75,180.74,0.03]
[1755861217901,28.44892566,180.75,180.74,0.03]
[1755861218512,8.6108282,180.75,180.74,0.03]
[1755861218681,5.664278,180.8,180.74,0.7]
[1755861218881,4.95427763,180.78,180.75,0.28432314]
[1755861219197,4.95427763,180.79,180.76,0.67]
[1755861219394,4.95427763,180.78,180.76,0.67]